[Event "Late-Titled-Tuesday-Blitz-October-24-2023"]
[Site "Chess.com"]
[Date "2023.10.24"]
[Round "6"]
[White "emiliochess"]
[Black "leoduarte"]
[Result "1-0"]
[WhiteElo "2316"]
[BlackElo "2393"]
[TimeControl "180+1"]
[EndTime "15:05:09 PDT"]
[Termination "emiliochess won on time"]

1. e4 {[%clk 0:02:55.6]} 1... c5 {[%clk 0:03:00.4]} 2. Nf3 {[%clk 0:02:53.3]}
2... e6 {[%clk 0:03:00.7]} 3. d4 {[%clk 0:02:52.4]} 3... cxd4 {[%clk 0:03:01.6]}
4. Nxd4 {[%clk 0:02:53.2]} 4... Nf6 {[%clk 0:03:00.8]} 5. Nc3 {[%clk 0:02:53.2]}
5... Nc6 {[%clk 0:03:01.5]} 6. Be3 {[%clk 0:02:53.6]} 6... Bb4 {[%clk
0:03:00.2]} 7. f3 {[%clk 0:02:53.2]} 7... d5 {[%clk 0:02:56.9]} 8. Bb5 {[%clk
0:02:51.9]} 8... Bd7 {[%clk 0:02:44.5]} 9. Bxc6 {[%clk 0:02:50.5]} 9... bxc6
{[%clk 0:02:43.6]} 10. e5 {[%clk 0:02:50.8]} 10... Ng8 {[%clk 0:02:31.1]} 11. a3
{[%clk 0:02:51]} 11... Bxc3+ {[%clk 0:02:19.9]} 12. bxc3 {[%clk 0:02:51.9]}
12... Qh4+ {[%clk 0:02:09]} 13. Bf2 {[%clk 0:02:51.5]} 13... Qg5 {[%clk
0:02:07.6]} 14. O-O {[%clk 0:02:51]} 14... Qxe5 {[%clk 0:02:05.9]} 15. Re1
{[%clk 0:02:51.2]} 15... Qf6 {[%clk 0:02:01.9]} 16. Qd3 {[%clk 0:02:49.6]} 16...
Ne7 {[%clk 0:02:01.2]} 17. Rab1 {[%clk 0:02:30.2]} 17... O-O {[%clk 0:01:48.9]}
18. Rb7 {[%clk 0:02:15.4]} 18... Rad8 {[%clk 0:01:36.6]} 19. Rxa7 {[%clk
0:02:09.2]} 19... Ng6 {[%clk 0:01:34.8]} 20. Nb3 {[%clk 0:01:54.2]} 20... e5
{[%clk 0:01:20.9]} 21. a4 {[%clk 0:01:48.8]} 21... Nf4 {[%clk 0:01:20.1]} 22.
Qd2 {[%clk 0:01:46.2]} 22... Bh3 {[%clk 0:01:00.2]} 23. gxh3 {[%clk 0:01:42.6]}
23... Nxh3+ {[%clk 0:00:49.6]} 24. Kg2 {[%clk 0:01:42.1]} 24... Nf4+ {[%clk
0:00:48.8]} 25. Kh1 {[%clk 0:01:42]} 25... Nh3 {[%clk 0:00:36.8]} 26. Bg3 {[%clk
0:01:42.4]} 26... e4 {[%clk 0:00:21.1]} 27. Qg2 {[%clk 0:01:43.3]} 27... Ng5
{[%clk 0:00:19.9]} 28. fxe4 {[%clk 0:01:41.2]} 28... dxe4 {[%clk 0:00:20.8]} 29.
Bh4 {[%clk 0:01:41.4]} 29... Rd5 {[%clk 0:00:19.4]} 30. Rf1 {[%clk 0:01:39.5]}
30... Qg6 {[%clk 0:00:14.7]} 31. Rg1 {[%clk 0:01:39.1]} 31... h6 {[%clk
0:00:14.9]} 32. Nd4 {[%clk 0:01:38.9]} 32... Qh5 {[%clk 0:00:10.2]} 33. Bg3
{[%clk 0:01:31.4]} 33... Nf3 {[%clk 0:00:09.2]} 34. Rf1 {[%clk 0:01:27.4]} 34...
Ng5 {[%clk 0:00:03.1]} 35. a5 {[%clk 0:01:26.5]} 35... c5 {[%clk 0:00:02.1]} 36.
Nf5 {[%clk 0:01:25.5]} 36... Nf3 {[%clk 0:00:01.2]} 37. Ne7+ {[%clk 0:01:25.7]}
37... Kh8 {[%clk 0:00:01.5]} 38. Nxd5 {[%clk 0:01:26.6]} 38... Rd8 {[%clk
0:00:01.5]} 39. Nf4 {[%clk 0:01:25.1]} 1-0

[Event "Late-Titled-Tuesday-Blitz-October-24-2023"]
[Site "Chess.com"]
[Date "2023.10.24"]
[Round "6"]
[White "Fandorine"]
[Black "HansOnTwitch"]
[Result "1-0"]
[WhiteElo "2935"]
[BlackElo "3033"]
[TimeControl "180+1"]
[EndTime "15:05:15 PDT"]
[Termination "Fandorine won by checkmate"]

1. e4 {[%clk 0:03:00.9]} 1... e5 {[%clk 0:02:57.5]} 2. Nf3 {[%clk 0:02:53.7]}
2... Nc6 {[%clk 0:02:56.9]} 3. Bc4 {[%clk 0:02:52.5]} 3... Nf6 {[%clk
0:02:56.1]} 4. d3 {[%clk 0:02:52.9]} 4... h6 {[%clk 0:02:55.6]} 5. a4 {[%clk
0:02:51.8]} 5... d6 {[%clk 0:02:55.1]} 6. a5 {[%clk 0:02:51.3]} 6... a6 {[%clk
0:02:55]} 7. c3 {[%clk 0:02:52]} 7... g5 {[%clk 0:02:53.8]} 8. Qb3 {[%clk
0:02:51.4]} 8... Qd7 {[%clk 0:02:51.5]} 9. h3 {[%clk 0:02:51.5]} 9... Bg7 {[%clk
0:02:51.3]} 10. Nbd2 {[%clk 0:02:52]} 10... O-O {[%clk 0:02:50.4]} 11. g4 {[%clk
0:02:38.3]} 11... Ne7 {[%clk 0:02:32.8]} 12. h4 {[%clk 0:02:35.6]} 12... c6
{[%clk 0:02:21.6]} 13. hxg5 {[%clk 0:02:14.3]} 13... hxg5 {[%clk 0:02:21.1]} 14.
Qc2 {[%clk 0:02:09]} 14... d5 {[%clk 0:02:20]} 15. Bb3 {[%clk 0:02:09]} 15...
Ng6 {[%clk 0:02:16.8]} 16. Nxg5 {[%clk 0:02:06.5]} 16... Nxg4 {[%clk 0:01:32.1]}
17. Ndf3 {[%clk 0:01:57.6]} 17... Rd8 {[%clk 0:01:31.4]} 18. Be3 {[%clk
0:01:45.1]} 18... Qe7 {[%clk 0:01:12.4]} 19. O-O-O {[%clk 0:01:37.1]} 19... f6
{[%clk 0:01:07.7]} 20. d4 {[%clk 0:01:22.8]} 20... fxg5 {[%clk 0:01:06.2]} 21.
exd5 {[%clk 0:01:22.6]} 21... Qe8 {[%clk 0:00:33]} 22. dxc6+ {[%clk 0:01:11.7]}
22... Kf8 {[%clk 0:00:32.1]} 23. Nxg5 {[%clk 0:01:03.9]} 23... Nf6 {[%clk
0:00:20.5]} 24. dxe5 {[%clk 0:00:54.2]} 24... Rxd1+ {[%clk 0:00:10.9]} 25. Rxd1
{[%clk 0:00:55.1]} 25... Ng4 {[%clk 0:00:04.5]} 26. Bc5+ {[%clk 0:00:52.4]}
26... Ne7 {[%clk 0:00:04.4]} 27. Nh7# {[%clk 0:00:52.5]} 1-0

[Event "Late-Titled-Tuesday-Blitz-October-24-2023"]
[Site "Chess.com"]
[Date "2023.10.24"]
[Round "6"]
[White "Angry_Twin"]
[Black "GMG"]
[Result "1-0"]
[WhiteElo "2939"]
[BlackElo "2766"]
[TimeControl "180+1"]
[EndTime "15:05:16 PDT"]
[Termination "Angry_Twin won on time"]

1. d4 {[%clk 0:03:00.9]} 1... d5 {[%clk 0:02:57.7]} 2. c4 {[%clk 0:03:00.7]}
2... e6 {[%clk 0:02:57.8]} 3. Nf3 {[%clk 0:02:59.4]} 3... a6 {[%clk 0:02:57.3]}
4. cxd5 {[%clk 0:02:54.8]} 4... exd5 {[%clk 0:02:58.2]} 5. Nc3 {[%clk
0:02:55.4]} 5... Nf6 {[%clk 0:02:56.7]} 6. Bg5 {[%clk 0:02:54.3]} 6... Be6
{[%clk 0:02:57.2]} 7. e3 {[%clk 0:02:54.7]} 7... Bd6 {[%clk 0:02:56.2]} 8. Bd3
{[%clk 0:02:55.1]} 8... Nbd7 {[%clk 0:02:54.1]} 9. O-O {[%clk 0:02:52.5]} 9...
c6 {[%clk 0:02:54.2]} 10. Bf4 {[%clk 0:02:52.6]} 10... Qb8 {[%clk 0:02:53.3]}
11. Bxd6 {[%clk 0:02:52.1]} 11... Qxd6 {[%clk 0:02:54.2]} 12. h3 {[%clk
0:02:51]} 12... O-O {[%clk 0:02:51.1]} 13. Qc2 {[%clk 0:02:51.2]} 13... a5
{[%clk 0:02:48.1]} 14. Na4 {[%clk 0:02:51.1]} 14... Rfe8 {[%clk 0:02:44.8]} 15.
Rac1 {[%clk 0:02:51.1]} 15... Ne4 {[%clk 0:02:34]} 16. Bxe4 {[%clk 0:02:39.4]}
16... dxe4 {[%clk 0:02:34.9]} 17. Nd2 {[%clk 0:02:40.1]} 17... Bd5 {[%clk
0:02:24]} 18. Nc3 {[%clk 0:02:39.8]} 18... Nf6 {[%clk 0:02:17.5]} 19. Nxd5
{[%clk 0:02:35.5]} 19... Qxd5 {[%clk 0:02:12.4]} 20. Qb3 {[%clk 0:02:34.8]}
20... Qxb3 {[%clk 0:02:10.3]} 21. Nxb3 {[%clk 0:02:34.5]} 21... Nd5 {[%clk
0:02:07.1]} 22. Nc5 {[%clk 0:02:34.6]} 22... Re7 {[%clk 0:02:07.4]} 23. Na4
{[%clk 0:02:23.7]} 23... f5 {[%clk 0:02:02.7]} 24. a3 {[%clk 0:02:14.5]} 24...
Kf7 {[%clk 0:01:59.8]} 25. Nc3 {[%clk 0:02:13.3]} 25... Rd8 {[%clk 0:01:59.6]}
26. Ne2 {[%clk 0:02:09.5]} 26... g5 {[%clk 0:01:56.1]} 27. Rc5 {[%clk
0:02:09.1]} 27... Ra8 {[%clk 0:01:50.1]} 28. Nc3 {[%clk 0:02:07.1]} 28... Ke6
{[%clk 0:01:37.7]} 29. Nxd5 {[%clk 0:02:05.9]} 29... cxd5 {[%clk 0:01:38.6]} 30.
Rfc1 {[%clk 0:02:05.3]} 30... a4 {[%clk 0:01:02.3]} 31. Rb5 {[%clk 0:02:04.2]}
31... Ra6 {[%clk 0:01:02.9]} 32. Rcc5 {[%clk 0:02:03.1]} 32... Rd7 {[%clk
0:01:03.2]} 33. Rb4 {[%clk 0:02:01.5]} 33... f4 {[%clk 0:01:02.2]} 34. Kf1
{[%clk 0:02:01.7]} 34... f3 {[%clk 0:00:57.5]} 35. Rc8 {[%clk 0:01:48.6]} 35...
fxg2+ {[%clk 0:00:49.4]} 36. Kxg2 {[%clk 0:01:48.6]} 36... Rc6 {[%clk
0:00:36.6]} 37. Rxc6+ {[%clk 0:01:44.6]} 37... bxc6 {[%clk 0:00:37.5]} 38. Rxa4
{[%clk 0:01:44.8]} 38... Rg7 {[%clk 0:00:32.7]} 39. b4 {[%clk 0:01:42.8]} 39...
g4 {[%clk 0:00:32.6]} 40. Ra6 {[%clk 0:01:41.8]} 40... gxh3+ {[%clk 0:00:31.7]}
41. Kxh3 {[%clk 0:01:42.2]} 41... Rf7 {[%clk 0:00:08.6]} 42. Rxc6+ {[%clk
0:01:40.4]} 42... Kd7 {[%clk 0:00:09]} 43. Rc2 {[%clk 0:01:40.9]} 43... Kd6
{[%clk 0:00:05.6]} 44. b5 {[%clk 0:01:39.8]} 1-0

[Event "Late-Titled-Tuesday-Blitz-October-24-2023"]
[Site "Chess.com"]
[Date "2023.10.24"]
[Round "6"]
[White "DanylaBagrov"]
[Black "FedaMaster"]
[Result "1-0"]
[WhiteElo "2578"]
[BlackElo "2651"]
[TimeControl "180+1"]
[EndTime "15:05:16 PDT"]
[Termination "DanylaBagrov won by resignation"]

1. d4 {[%clk 0:03:00.9]} 1... d5 {[%clk 0:03:00.2]} 2. c4 {[%clk 0:03:00.6]}
2... c6 {[%clk 0:02:58.8]} 3. Nf3 {[%clk 0:03:00.2]} 3... e6 {[%clk 0:02:58.4]}
4. Qc2 {[%clk 0:03:00.8]} 4... f6 {[%clk 0:02:57.3]} 5. e4 {[%clk 0:02:57.2]}
5... dxe4 {[%clk 0:02:55.8]} 6. Qxe4 {[%clk 0:02:56.9]} 6... Bb4+ {[%clk
0:02:46.8]} 7. Bd2 {[%clk 0:02:52.1]} 7... Bxd2+ {[%clk 0:02:46.8]} 8. Nbxd2
{[%clk 0:02:51.1]} 8... Ne7 {[%clk 0:02:46.2]} 9. Bd3 {[%clk 0:02:48.5]} 9... e5
{[%clk 0:02:42.4]} 10. Qh4 {[%clk 0:02:36.3]} 10... Bf5 {[%clk 0:02:33.8]} 11.
Bxf5 {[%clk 0:02:25.1]} 11... Nxf5 {[%clk 0:02:34.7]} 12. Qg4 {[%clk 0:02:25.5]}
12... Nxd4 {[%clk 0:02:13.9]} 13. Nxd4 {[%clk 0:02:22.1]} 13... Qxd4 {[%clk
0:02:12.3]} 14. Qxg7 {[%clk 0:02:21.4]} 14... Rf8 {[%clk 0:02:12.2]} 15. Qxb7
{[%clk 0:02:18.1]} 15... Qb6 {[%clk 0:01:45.9]} 16. Qxh7 {[%clk 0:01:32.8]}
16... Nd7 {[%clk 0:01:23.3]} 17. Qg6+ {[%clk 0:01:30.8]} 17... Ke7 {[%clk
0:01:13.8]} 18. O-O {[%clk 0:01:28.8]} 18... Rh8 {[%clk 0:01:13.8]} 19. Ne4
{[%clk 0:01:25]} 19... Rag8 {[%clk 0:01:11.7]} 20. Qf5 {[%clk 0:01:25.3]} 20...
Rh6 {[%clk 0:00:58.1]} 21. Rad1 {[%clk 0:01:22.8]} 21... Qc7 {[%clk 0:00:44.8]}
22. Rd6 {[%clk 0:01:13.9]} 22... Rgg6 {[%clk 0:00:19.7]} 23. Qe6+ {[%clk
0:01:12]} 23... Kd8 {[%clk 0:00:17.1]} 24. Rfd1 {[%clk 0:01:08.7]} 24... Rg7
{[%clk 0:00:17.7]} 25. Nxf6 {[%clk 0:00:51.7]} 25... Kc8 {[%clk 0:00:17.4]} 26.
Rxd7 {[%clk 0:00:46.4]} 26... Rxd7 {[%clk 0:00:16.8]} 27. Rxd7 {[%clk 0:00:45]}
27... Qa5 {[%clk 0:00:14.8]} 28. Qe8+ {[%clk 0:00:43.6]} 1-0

[Event "Late-Titled-Tuesday-Blitz-October-24-2023"]
[Site "Chess.com"]
[Date "2023.10.24"]
[Round "6"]
[White "Skatchkov_V"]
[Black "NikolaGry"]
[Result "0-1"]
[WhiteElo "2561"]
[BlackElo "2729"]
[TimeControl "180+1"]
[EndTime "15:05:21 PDT"]
[Termination "NikolaGry won on time"]

1. d4 {[%clk 0:03:00.5]} 1... d5 {[%clk 0:02:58.7]} 2. c4 {[%clk 0:03:00.1]}
2... Nc6 {[%clk 0:02:58]} 3. Nf3 {[%clk 0:02:58.5]} 3... Bg4 {[%clk 0:02:57.2]}
4. cxd5 {[%clk 0:02:58.1]} 4... Bxf3 {[%clk 0:02:56.9]} 5. gxf3 {[%clk 0:02:59]}
5... Qxd5 {[%clk 0:02:56.2]} 6. e3 {[%clk 0:02:59.5]} 6... e5 {[%clk 0:02:56.3]}
7. Nc3 {[%clk 0:03:00.2]} 7... Bb4 {[%clk 0:02:56.2]} 8. Bd2 {[%clk 0:03:00.8]}
8... Bxc3 {[%clk 0:02:56.1]} 9. bxc3 {[%clk 0:03:01.6]} 9... Qd6 {[%clk
0:02:55.5]} 10. Qb3 {[%clk 0:03:00.6]} 10... Rb8 {[%clk 0:02:44.7]} 11. f4
{[%clk 0:03:00]} 11... exf4 {[%clk 0:02:41.5]} 12. e4 {[%clk 0:03:00.2]} 12...
Nge7 {[%clk 0:02:27.7]} 13. Rg1 {[%clk 0:02:49.5]} 13... O-O {[%clk 0:02:19.2]}
14. Qb5 {[%clk 0:02:49.3]} 14... Ng6 {[%clk 0:02:11.1]} 15. Bd3 {[%clk
0:02:36.6]} 15... a6 {[%clk 0:01:58.1]} 16. Qg5 {[%clk 0:02:30.8]} 16... Nxd4
{[%clk 0:01:45.1]} 17. cxd4 {[%clk 0:01:49]} 17... Qxd4 {[%clk 0:01:42.5]} 18.
Ke2 {[%clk 0:01:11.2]} 18... Rbd8 {[%clk 0:01:39.3]} 19. Bxf4 {[%clk 0:00:46.3]}
19... Qxd3+ {[%clk 0:01:28.7]} 20. Ke1 {[%clk 0:00:45.7]} 20... Qc3+ {[%clk
0:01:16.4]} 21. Ke2 {[%clk 0:00:44.4]} 21... Qd3+ {[%clk 0:01:12.7]} 22. Ke1
{[%clk 0:00:43.8]} 22... Qxe4+ {[%clk 0:01:12.8]} 23. Be3 {[%clk 0:00:43]} 23...
f5 {[%clk 0:01:06.7]} 24. Qg2 {[%clk 0:00:25.7]} 24... Qb4+ {[%clk 0:01:03.7]}
25. Kf1 {[%clk 0:00:26]} 25... f4 {[%clk 0:01:02.3]} 26. Qd5+ {[%clk 0:00:21.8]}
26... Rxd5 {[%clk 0:01:00.9]} 27. Rxg6 {[%clk 0:00:22.7]} 27... fxe3 {[%clk
0:00:58.4]} 28. Rxg7+ {[%clk 0:00:22.5]} 28... Kxg7 {[%clk 0:00:58]} 29. f4
{[%clk 0:00:22.1]} 29... Qxf4+ {[%clk 0:00:57]} 30. Kg1 {[%clk 0:00:20.6]} 30...
Rg5+ {[%clk 0:00:56.8]} 0-1

[Event "Late-Titled-Tuesday-Blitz-October-24-2023"]
[Site "Chess.com"]
[Date "2023.10.24"]
[Round "6"]
[White "TigrVShlyape"]
[Black "koncheto"]
[Result "1-0"]
[WhiteElo "2843"]
[BlackElo "2569"]
[TimeControl "180+1"]
[EndTime "15:05:29 PDT"]
[Termination "TigrVShlyape won by resignation"]

1. d4 {[%clk 0:03:00.9]} 1... Nf6 {[%clk 0:02:59.8]} 2. Bf4 {[%clk 0:02:56]}
2... e6 {[%clk 0:03:00.1]} 3. e3 {[%clk 0:02:56]} 3... c5 {[%clk 0:03:00.3]} 4.
c3 {[%clk 0:02:55]} 4... d5 {[%clk 0:03:00.6]} 5. Nd2 {[%clk 0:02:55]} 5... Bd6
{[%clk 0:03:00.6]} 6. Bb5+ {[%clk 0:02:54.2]} 6... Nc6 {[%clk 0:02:59.7]} 7. Bg3
{[%clk 0:02:53.7]} 7... O-O {[%clk 0:02:55.5]} 8. Ngf3 {[%clk 0:02:53.7]} 8...
Qe7 {[%clk 0:02:45]} 9. Bxc6 {[%clk 0:02:51.5]} 9... bxc6 {[%clk 0:02:44.6]} 10.
Qa4 {[%clk 0:02:50.6]} 10... Bxg3 {[%clk 0:02:14.6]} 11. hxg3 {[%clk 0:02:50.1]}
11... Bd7 {[%clk 0:02:10.5]} 12. Qa3 {[%clk 0:02:48.7]} 12... Rfb8 {[%clk
0:01:54.6]} 13. b3 {[%clk 0:02:33.7]} 13... Rb5 {[%clk 0:01:54.3]} 14. O-O
{[%clk 0:02:21.6]} 14... Qd8 {[%clk 0:01:46.4]} 15. dxc5 {[%clk 0:02:20]} 15...
Ra5 {[%clk 0:01:46.2]} 16. Qb4 {[%clk 0:02:17.2]} 16... Rb5 {[%clk 0:01:46.1]}
17. Qd4 {[%clk 0:02:17.3]} 17... a5 {[%clk 0:01:40.9]} 18. a3 {[%clk 0:02:14.5]}
18... Ne8 {[%clk 0:01:04.1]} 19. e4 {[%clk 0:02:13.2]} 19... Nc7 {[%clk
0:00:46.7]} 20. b4 {[%clk 0:02:10.4]} 20... f6 {[%clk 0:00:44.5]} 21. e5 {[%clk
0:02:07]} 21... Rbb8 {[%clk 0:00:31.1]} 22. Nb3 {[%clk 0:02:05.4]} 22... a4
{[%clk 0:00:20.1]} 23. Nbd2 {[%clk 0:02:04.6]} 23... Nb5 {[%clk 0:00:20.2]} 24.
Qe3 {[%clk 0:02:04.7]} 24... f5 {[%clk 0:00:16.8]} 25. Nd4 {[%clk 0:02:01.3]}
25... Qe7 {[%clk 0:00:14.5]} 26. Nxb5 {[%clk 0:02:00.8]} 26... cxb5 {[%clk
0:00:09.3]} 27. Nf3 {[%clk 0:01:57.2]} 27... h6 {[%clk 0:00:07.3]} 28. Nd4
{[%clk 0:01:53.1]} 28... Rc8 {[%clk 0:00:07.5]} 29. f3 {[%clk 0:01:52.7]} 29...
Bc6 {[%clk 0:00:06.4]} 30. Kf2 {[%clk 0:01:49.7]} 30... Rc7 {[%clk 0:00:06]} 31.
Rh1 {[%clk 0:01:49.6]} 31... Rf8 {[%clk 0:00:05.8]} 32. Rh4 {[%clk 0:01:48.6]}
32... Kf7 {[%clk 0:00:05.4]} 33. Rah1 {[%clk 0:01:47.7]} 33... Ke8 {[%clk
0:00:05.3]} 34. Ke1 {[%clk 0:01:45.3]} 34... Kd7 {[%clk 0:00:04.6]} 35. f4
{[%clk 0:01:45.1]} 35... Kc8 {[%clk 0:00:04]} 36. g4 {[%clk 0:01:44.8]} 36...
fxg4 {[%clk 0:00:03.8]} 37. Rxg4 {[%clk 0:01:44.8]} 37... Qe8 {[%clk 0:00:03.6]}
38. g3 {[%clk 0:01:38.5]} 38... Rcf7 {[%clk 0:00:02.4]} 39. Rg6 {[%clk 0:01:31]}
39... Re7 {[%clk 0:00:02.5]} 40. Qd3 {[%clk 0:01:29.5]} 40... Kb7 {[%clk
0:00:03.1]} 41. Kd2 {[%clk 0:01:22.8]} 41... Kc7 {[%clk 0:00:03.5]} 42. Kc1
{[%clk 0:01:21.3]} 42... Kb7 {[%clk 0:00:04.1]} 43. Rf1 {[%clk 0:01:21.1]} 43...
Kc7 {[%clk 0:00:04.5]} 44. g4 {[%clk 0:01:20.6]} 44... Ref7 {[%clk 0:00:03.1]}
45. f5 {[%clk 0:01:19.9]} 45... exf5 {[%clk 0:00:02.9]} 46. Rxc6+ {[%clk
0:01:19.5]} 1-0

[Event "Late-Titled-Tuesday-Blitz-October-24-2023"]
[Site "Chess.com"]
[Date "2023.10.24"]
[Round "6"]
[White "Giorno"]
[Black "rikchessmx"]
[Result "0-1"]
[WhiteElo "2530"]
[BlackElo "2286"]
[TimeControl "180+1"]
[EndTime "15:05:29 PDT"]
[Termination "rikchessmx won by resignation"]

1. d4 {[%clk 0:02:59.8]} 1... Nf6 {[%clk 0:02:43.6]} 2. c3 {[%clk 0:03:00.7]}
2... b6 {[%clk 0:02:42.5]} 3. g4 {[%clk 0:02:15]} 3... Bb7 {[%clk 0:02:37.7]} 4.
Nf3 {[%clk 0:02:13.9]} 4... Nxg4 {[%clk 0:02:37.1]} 5. Rg1 {[%clk 0:02:12.9]}
5... Nf6 {[%clk 0:02:36.6]} 6. Nbd2 {[%clk 0:02:11.6]} 6... g6 {[%clk
0:02:36.1]} 7. Bg2 {[%clk 0:02:10.2]} 7... Bg7 {[%clk 0:02:35.6]} 8. Qc2 {[%clk
0:02:10]} 8... d6 {[%clk 0:02:31.9]} 9. e4 {[%clk 0:02:10]} 9... Nbd7 {[%clk
0:02:29.2]} 10. e5 {[%clk 0:02:09.2]} 10... dxe5 {[%clk 0:02:28.6]} 11. dxe5
{[%clk 0:02:09.5]} 11... Ng4 {[%clk 0:02:24.4]} 12. e6 {[%clk 0:02:09.1]} 12...
fxe6 {[%clk 0:02:24.2]} 13. Ng5 {[%clk 0:02:09]} 13... Bxg2 {[%clk 0:02:17.4]}
14. Nxe6 {[%clk 0:02:09.2]} 14... Qc8 {[%clk 0:02:08.4]} 15. Nxg7+ {[%clk
0:02:09.1]} 15... Kf7 {[%clk 0:02:08.7]} 16. Rxg2 {[%clk 0:02:08.9]} 16... Ndf6
{[%clk 0:02:03.8]} 17. Qb3+ {[%clk 0:01:59.9]} 17... Kxg7 {[%clk 0:01:59.8]} 18.
Nf1 {[%clk 0:01:57.7]} 18... Ne5 {[%clk 0:01:49.8]} 19. Rg3 {[%clk 0:01:47.6]}
19... c5 {[%clk 0:01:49.1]} 20. c4 {[%clk 0:01:44.4]} 20... Qe6 {[%clk
0:01:42.6]} 21. Be3 {[%clk 0:01:39.3]} 21... Qxc4 {[%clk 0:01:37.5]} 22. Qxc4
{[%clk 0:01:37.3]} 22... Nxc4 {[%clk 0:01:37]} 23. O-O-O {[%clk 0:01:37.5]}
23... Rad8 {[%clk 0:01:31.9]} 24. Re1 {[%clk 0:01:37.9]} 24... Nxe3 {[%clk
0:01:30.6]} 25. Rgxe3 {[%clk 0:01:38]} 25... Nd5 {[%clk 0:01:26.9]} 26. Re5
{[%clk 0:01:35]} 26... Rhf8 {[%clk 0:01:25.7]} 27. R1e2 {[%clk 0:01:32.6]} 27...
Rf5 {[%clk 0:01:22.6]} 28. R5e4 {[%clk 0:01:28.9]} 28... Rd7 {[%clk 0:01:17.1]}
29. Nd2 {[%clk 0:01:23.1]} 29... Kf8 {[%clk 0:01:11.1]} 30. f3 {[%clk 0:01:16]}
30... Nf4 {[%clk 0:01:09.9]} 31. Rxf4 {[%clk 0:01:01.3]} 31... Rxf4 {[%clk
0:01:09]} 32. Kc2 {[%clk 0:01:02.2]} 32... Rxd2+ {[%clk 0:01:04.1]} 33. Rxd2
{[%clk 0:00:56.5]} 33... Rxf3 {[%clk 0:01:03.9]} 34. Rd7 {[%clk 0:00:57.2]}
34... a5 {[%clk 0:00:58.8]} 35. Rb7 {[%clk 0:00:56.5]} 35... Rf6 {[%clk
0:00:58.4]} 36. Kd3 {[%clk 0:00:56.8]} 36... Kf7 {[%clk 0:00:57.7]} 37. Kc4
{[%clk 0:00:55.3]} 37... Rf4+ {[%clk 0:00:55.7]} 38. Kc3 {[%clk 0:00:53.2]}
38... Rf6 {[%clk 0:00:52.9]} 39. Kc4 {[%clk 0:00:53]} 39... g5 {[%clk
0:00:52.9]} 40. Kb5 {[%clk 0:00:50.2]} 40... g4 {[%clk 0:00:51.7]} 41. Rxb6
{[%clk 0:00:50.7]} 41... Rxb6+ {[%clk 0:00:50.8]} 42. Kxb6 {[%clk 0:00:51.6]}
42... h5 {[%clk 0:00:50.6]} 43. Kxc5 {[%clk 0:00:51.8]} 43... h4 {[%clk
0:00:50.5]} 44. Kd4 {[%clk 0:00:52.1]} 44... g3 {[%clk 0:00:50.9]} 45. hxg3
{[%clk 0:00:51.1]} 45... h3 {[%clk 0:00:51.2]} 46. Kc5 {[%clk 0:00:50.9]} 46...
h2 {[%clk 0:00:51.4]} 47. Kb5 {[%clk 0:00:51.8]} 47... h1=Q {[%clk 0:00:51.7]}
48. Kxa5 {[%clk 0:00:52.7]} 48... Qa8+ {[%clk 0:00:49.9]} 49. Kb5 {[%clk
0:00:51.9]} 49... Qxa2 {[%clk 0:00:48.6]} 50. b4 {[%clk 0:00:52.8]} 50... Qg2
{[%clk 0:00:46.3]} 51. Kb6 {[%clk 0:00:52.4]} 51... Qxg3 {[%clk 0:00:46.6]} 52.
b5 {[%clk 0:00:53]} 52... Qb8+ {[%clk 0:00:47.1]} 0-1

[Event "Late-Titled-Tuesday-Blitz-October-24-2023"]
[Site "Chess.com"]
[Date "2023.10.24"]
[Round "6"]
[White "giomar27"]
[Black "aghasiyevkamal"]
[Result "0-1"]
[WhiteElo "2377"]
[BlackElo "2590"]
[TimeControl "180+1"]
[EndTime "15:05:34 PDT"]
[Termination "aghasiyevkamal won on time"]

1. e4 {[%clk 0:03:00.9]} 1... e5 {[%clk 0:02:50.8]} 2. Nf3 {[%clk 0:03:00.1]}
2... Nc6 {[%clk 0:02:48.5]} 3. Nc3 {[%clk 0:03:00.7]} 3... Nf6 {[%clk
0:02:47.6]} 4. d4 {[%clk 0:03:01.2]} 4... Bb4 {[%clk 0:02:34.7]} 5. Nxe5 {[%clk
0:03:00.9]} 5... O-O {[%clk 0:02:24.6]} 6. Nxc6 {[%clk 0:02:33.4]} 6... dxc6
{[%clk 0:02:22.9]} 7. e5 {[%clk 0:02:33.2]} 7... Nd5 {[%clk 0:02:17]} 8. Bd2
{[%clk 0:02:32.2]} 8... c5 {[%clk 0:02:14.3]} 9. Nxd5 {[%clk 0:02:27.6]} 9...
Bxd2+ {[%clk 0:02:14.1]} 10. Qxd2 {[%clk 0:02:28]} 10... Qxd5 {[%clk 0:02:14.7]}
11. c4 {[%clk 0:02:15.1]} 11... Qxd4 {[%clk 0:02:10.8]} 12. Qxd4 {[%clk
0:02:14.2]} 12... cxd4 {[%clk 0:02:11.2]} 13. O-O-O {[%clk 0:02:10.1]} 13... c5
{[%clk 0:02:10.9]} 14. Bd3 {[%clk 0:02:09.5]} 14... f6 {[%clk 0:01:45.5]} 15.
exf6 {[%clk 0:01:39.1]} 15... Rxf6 {[%clk 0:01:45]} 16. f3 {[%clk 0:01:39.7]}
16... Be6 {[%clk 0:01:35.4]} 17. Rhe1 {[%clk 0:01:39.7]} 17... Rc8 {[%clk
0:01:32.8]} 18. b3 {[%clk 0:01:38.5]} 18... a6 {[%clk 0:01:30.4]} 19. Be4 {[%clk
0:01:38.6]} 19... b5 {[%clk 0:01:30.1]} 20. Bb7 {[%clk 0:01:37.5]} 20... Rb8
{[%clk 0:01:25.8]} 21. Rxe6 {[%clk 0:00:51.8]} 21... Rxb7 {[%clk 0:01:25.2]} 22.
Rde1 {[%clk 0:00:36]} 22... Kf7 {[%clk 0:01:16.4]} 23. Rxf6+ {[%clk 0:00:18]}
23... Kxf6 {[%clk 0:01:14.3]} 24. cxb5 {[%clk 0:00:18.4]} 24... axb5 {[%clk
0:01:12.9]} 25. Re8 {[%clk 0:00:18.1]} 25... Ra7 {[%clk 0:01:08.5]} 26. Kb2
{[%clk 0:00:17.9]} 26... Rd7 {[%clk 0:01:08.2]} 27. Rc8 {[%clk 0:00:17.5]} 27...
Rd5 {[%clk 0:01:03.2]} 28. a4 {[%clk 0:00:17.4]} 28... d3 {[%clk 0:00:58.2]} 29.
Kc1 {[%clk 0:00:15]} 29... bxa4 {[%clk 0:00:58.6]} 30. bxa4 {[%clk 0:00:15.1]}
30... Ke5 {[%clk 0:00:59.1]} 31. a5 {[%clk 0:00:09.1]} 31... Kd4 {[%clk
0:00:59.3]} 32. Rc7 {[%clk 0:00:05.6]} 32... Kc3 {[%clk 0:00:56]} 33. a6 {[%clk
0:00:02.7]} 33... c4 {[%clk 0:00:56]} 34. a7 {[%clk 0:00:02.1]} 34... Ra5 {[%clk
0:00:55.8]} 0-1